Workbook

Sheet PORTADA

Sheet MENU (hidden)
B5: Descripción | C5: Nombre de la hoja
B6: Declaraciones informativas | C6: OBLIGACIONES
B7: Regla 2.5.1 RMF 2023 | C7: FUNDAMENTO
B8: Ejemplo IEPS | C8: EJEMPLO
B9: Formato anexo 1 | C9: ANEXO 1
B10: Formato anexo 3 | C10: ANEXO3
B11: Formato anexo 4 | C11: ANEXO4
B12: Formato anexo 5 | C12: ANEXO5
B13: Formato entidad federativa ANEXO 8 | C13: ANEXO8V
B14: Formato anexo 9 | C14: ANEXO 9
B15: Claves de productos MULTI-IEPS | C15: CLAVEG
B16: Claves de país MULTI-IEPS | C16: PAISO

Sheet OBLIGACIONES (hidden)
B3: Producto | C3: Inciso del artículo 2 fracción I LIEPS
B4: Bebidas con contenido alcohólico y cerveza | C4: A
B5: Obligaciones | C5: Fundamento | D5: Formato MULTI-IEPS | E5: Infracción | F5: Multa
B6: Declaración trimestral de los contribuyentes que se les traslado el IEPS expresamente y por separado, en caso de vinos de mesa semestral. | C6: Artículo 19 fracción II LIEPS, regla 5.2.1 RMF 2024 | D6: Anexo 1 | E6: No proporcionar la información a que se refiere el artículo 19, fracciones II, tercer párrafo, XIII y XV de la Ley del Impuesto Especial sobre Producción y Servicios. Fundamento: Artículo 81 fracción XVIII CFF. | F6: De $14,380.00 a $23,940.00 Fundamento: Artículo 82 fracción XVIII CFF.
B7: Declaración trimestral de los 50 principales clientes y proveedores, en caso de vinos de mesa en forma semestral | C7: Artículo 19 fracción VIII LIEPS | D7: Anexo 1 | E7: No presentar la información a que se refieren el 19, fracciones VIII, IX y XII, de la Ley del Impuesto Especial sobre Producción y Servicios, dentro del plazo previsto en dichos preceptos, o no presentarla conforme lo establecen los mismos. Fundamento: Artículo 81 fracción VIII CFF. | F7: De $96,230.00 a $288,660.00 Fundamento: Artículo 82 fracción VIII CFF.
B8: Proporcionar a las autoridades fiscales durante el mes de marzo de cada año, la información que corresponda de los bienes que produjeron, enajenaron o importaron en el año inmediato anterior, respecto de su consumo por entidad federativa e impuesto correspondiente, así como de los servicios prestados por establecimiento en cada entidad federativa. | C8: Artículo 19 fracción VI LIEPS, regla 5.2.1 RMF 2024 | D8: Anexo 8 | E8: Artículo 91 CFF. La infracción en cualquier forma a las disposiciones fiscales, diversa a las previstas en este Capítulo, se sancionará con multa $490.00 a $4,640.00
B9: Los fabricantes, productores o envasadores, deberán llevar un control físico del volumen fabricado, producido o envasado, según corresponda, así como reportar trimestralmente, en los meses de abril, julio, octubre y enero, del año que corresponda, la lectura mensual de los registros de cada uno de los dispositivos que se utilicen para llevar el citado control, en el trimestre inmediato anterior al de su declaración. No aplica a los productores de vinos de mesa | C9: Artículo 19 fracción X LIEPS, regla 5.2.1 RMF 2024 | D9: Anexo 9 | E9: No proporcionar la información a que se refiere el artículo 19, fracciones X y XVI de la Ley del Impuesto Especial sobre Producción y Servicios. Fundamento: Artículo 81 fracción XIX CFF. | F9: De $23,940.00 a $47,930.00 Fundamento: Artículo 82 fracción XIX CFF.
B10: Los fabricantes, productores y envasadores, de alcohol, alcohol desnaturalizado, mieles incristalizables y de bebidas alcohólicas, deberán reportar en el mes de enero de cada año, al Servicio de Administración Tributaria, las características de los equipos que utilizarán para la producción, destilación, envasamiento y almacenaje de dichos bienes, así como de los contenedores para el almacenaje de dichos bienes cuando no se trate de equipo. Asimismo, deberán reportar a dicha dependencia la fecha de inicio del proceso de producción, destilación o envasamiento, con quince días de anticipación al mismo, acompañando la información sobre las existencias de producto en ese momento. Igualmente, deberán reportar la fecha en que finalice el proceso, dentro de los quince días siguientes a la conclusión del mismo, acompañando la información sobre el volumen fabricado, producido o envasado. En el caso de que se adquieran o se incorporen nuevos equipos de destilación o envasamiento, se modifiquen los instalados o se enajenen los reportados por el contribuyente, se deberá presentar aviso ante las autoridades fiscales dentro de los 15 días siguientes a que esto ocurra. | C10: Artículo 19 fracción XII LIEPS, regla 5.2.1 RMF 2024 | D10: Anexo 3 Equipos | E10: No presentar la información a que se refieren el 19, fracciones VIII, IX y XII, de la Ley del Impuesto Especial sobre Producción y Servicios, dentro del plazo previsto en dichos preceptos, o no presentarla conforme lo establecen los mismos. Fundamento: Artículo 81 fracción VIII CFF. | F10: De $96,230.00 a $288,660.00 Fundamento: Artículo 82 fracción VIII CFF.
D11: Anexto 4 Proceso de producción, destilación o envasamiento
B12: Declaración trimestral del precio de enajenación de cada producto, valor y volumen de los mismos, en caso de vinos de mesa es semestral | C12: Artículo 19 fracción XIII LIEPS, regla 5.2.1 RMF 2024 | D12: Anexo 1 | E12: No proporcionar la información a que se refiere el artículo 19, fracciones II, tercer párrafo, XIII y XV de la Ley del Impuesto Especial sobre Producción y Servicios. Fundamento: Artículo 81 fracción XVIII CFF. | F12: De $12,700.00 a $21,150.00 Fundamento: Artículo 82 fracción XVIII CFF.
B13: Reporte trimestral de los marbes y precintos obtenidos, utilizados, destruidos, e inutilizados durante el trimestre inmediato anterior. | C13: Artículo 19 fracción XV LIEPS, regla 5.2.1 RMF 2024 | D13: Página del SAT marbes y precintos
B14: Los productores o envasadores de los bienes a que se refiere el numeral 3 (bebidas alcoholicas con graduación alcohólica mayor a 20° G.L.) del inciso A) de la fracción I del artículo 2o. de esta Ley, estarán obligados a llevar un control volumétrico de producción y presentar a la Secretaría de Hacienda y Crédito Público, trimestralmente, en los meses de abril, julio, octubre y enero, del año que corresponda, un informe que contenga el número de litros producidos de conformidad con el citado control, del trimestre inmediato anterior a la fecha en que se informa. | C14: Artículo 19 fracción XVI LIEPS, regla 5.2.1 RMF 2024 | D14: Anexo 9 | E14: No proporcionar la información a que se refiere el artículo 19, fracciones X y XVI de la Ley del Impuesto Especial sobre Producción y Servicios. Fundamento: Artículo 81 fracción XIX CFF. | F14: De $23,940.00 a $47,930.00 Fundamento: Artículo 82 fracción XIX CFF.
B17: Producto | C17: Inciso del artículo 2 fracción I LIEPS
B18: Alcohol, alcohol desnaturalizado y mieles incristalizables | C18: B
B19: Obligaciones | C19: Fundamento | D19: Formato MULTI-IEPS
B20: Proporcionar a las autoridades fiscales durante el mes de marzo de cada año, la información que corresponda de los bienes que produjeron, enajenaron o importaron en el año inmediato anterior, respecto de su consumo por entidad federativa e impuesto correspondiente, así como de los servicios prestados por establecimiento en cada entidad federativa. | C20: Artículo 19 fracción VI LIEPS, regla 5.2.1 RMF 2024 | D20: Anexo 8 | E20: Artículo 91 CFF. La infracción en cualquier forma a las disposiciones fiscales, diversa a las previstas en este Capítulo, se sancionará con multa $490.00 a $4,640.00
B21: Declaración trimestral de los 50 principales clientes y proveedores. | C21: Artículo 19 fracción VIII LIEPS | D21: Anexo 1 | E21: No presentar la información a que se refieren el 19, fracciones VIII, IX y XII, de la Ley del Impuesto Especial sobre Producción y Servicios, dentro del plazo previsto en dichos preceptos, o no presentarla conforme lo establecen los mismos. Fundamento: Artículo 81 fracción VIII CFF. | F21: De $96,230.00 a $288,660.00 Fundamento: Artículo 82 fracción VIII CFF.
B22: Los fabricantes, productores o envasadores, deberán llevar un control físico del volumen fabricado, producido o envasado, según corresponda, así como reportar trimestralmente, en los meses de abril, julio, octubre y enero, del año que corresponda, la lectura mensual de los registros de cada uno de los dispositivos que se utilicen para llevar el citado control, en el trimestre inmediato anterior al de su declaración. | C22: Artículo 19 fracción X LIEPS, regla 5.2.1 RMF 2024 | D22: Anexo 9 | E22: No proporcionar la información a que se refiere el artículo 19, fracciones X y XVI de la Ley del Impuesto Especial sobre Producción y Servicios. Fundamento: Artículo 81 fracción XIX CFF. | F22: De $23,940.00 a $47,930.00 Fundamento: Artículo 82 fracción XIX CFF.
B23: Los fabricantes, productores y envasadores, de alcohol, alcohol desnaturalizado, mieles incristalizables y de bebidas alcohólicas, deberán reportar en el mes de enero de cada año, al Servicio de Administración Tributaria, las características de los equipos que utilizarán para la producción, destilación, envasamiento y almacenaje de dichos bienes, así como de los contenedores para el almacenaje de dichos bienes cuando no se trate de equipo. Asimismo, deberán reportar a dicha dependencia la fecha de inicio del proceso de producción, destilación o envasamiento, con quince días de anticipación al mismo, acompañando la información sobre las existencias de producto en ese momento. Igualmente, deberán reportar la fecha en que finalice el proceso, dentro de los quince días siguientes a la conclusión del mismo, acompañando la información sobre el volumen fabricado, producido o envasado. En el caso de que se adquieran o se incorporen nuevos equipos de destilación o envasamiento, se modifiquen los instalados o se enajenen los reportados por el contribuyente, se deberá presentar aviso ante las autoridades fiscales dentro de los 15 días siguientes a que esto ocurra. | C23: Artículo 19 fracción XII LIEPS, regla 5.2.1 RMF 2024 | D23: Anexo 3 Equipos | E23: No presentar la información a que se refieren el 19, fracciones VIII, IX y XII, de la Ley del Impuesto Especial sobre Producción y Servicios, dentro del plazo previsto en dichos preceptos, o no presentarla conforme lo establecen los mismos. Fundamento: Artículo 81 fracción VIII CFF. | F23: De $85,000.00 a $254,980.00. Fundamento: Artículo 82 fracción VIII CFF.
D24: Anexto 4 Proceso de producción, destilación o envasamiento
B27: Producto | C27: Inciso del artículo 2 fracción I LIEPS
B28: Tabacos labrados | C28: C
B29: Obligaciones | C29: Fundamento | D29: Formato MULTI-IEPS
B30: Los productores e importadores de cigarros, deberán registrar ante las autoridades fiscales, dentro del primer mes de cada año, la lista de precios de venta por cada uno de los productos que enajenan, clasificados por marca y presentación, señalando los precios al mayorista, detallista y el precio sugerido de venta al público. Asimismo, se deberá informar a las autoridades fiscales cuando exista alguna modificación en los precios, debiendo presentar a las citadas autoridades, dentro de los 5 días siguientes a que esto ocurra, la lista de precios de venta que estará vigente a partir del momento de la modificación. | C30: Artículo 19 fracción IV LIEPS, regla 5.2.1 RMF 2024 | D30: Anexo 2 | E30: Artículo 91 CFF. La infracción en cualquier forma a las disposiciones fiscales, diversa a las previstas en este Capítulo, se sancionará con multa $490.00 a $4,640.00
B31: Proporcionar a las autoridades fiscales durante el mes de marzo de cada año, la información que corresponda de los bienes que produjeron, enajenaron o importaron en el año inmediato anterior, respecto de su consumo por entidad federativa e impuesto correspondiente, así como de los servicios prestados por establecimiento en cada entidad federativa. | C31: Artículo 19 fracción VI LIEPS, regla 5.2.1 RMF 2024 | D31: Anexo 8
B32: Declaración trimestral de los 50 principales clientes y proveedores. | C32: Artículo 19 fracción VIII LIEPS | D32: Anexo 1 | E32: No presentar la información a que se refieren el 19, fracciones VIII, IX y XII, de la Ley del Impuesto Especial sobre Producción y Servicios, dentro del plazo previsto en dichos preceptos, o no presentarla conforme lo establecen los mismos. Fundamento: Artículo 81 fracción VIII CFF. | F32: De $96,230.00 a $288,660.00 Fundamento: Artículo 82 fracción VIII CFF.
B33: Los productores e importadores de tabacos labrados, deberán informar a la Secretaría de Hacienda y Crédito Público, conjuntamente con su declaración del mes, el precio de enajenación de cada producto y el valor y volumen de los mismos; así como especificar el peso total de tabacos labrados enajenados o, en su caso, la cantidad total de cigarros enajenados. Esta información se deberá proporcionar por cada una de las marcas que produzca o importe el contribuyente. | C33: Artículo 19 fracción IX LIEPS, regla 5.2.1 RMF 2024 | D33: Anexo 2
B34: Los fabricantes, productores o envasadores, deberán llevar un control físico del volumen fabricado, producido o envasado, según corresponda, así como reportar trimestralmente, en los meses de abril, julio, octubre y enero, del año que corresponda, la lectura mensual de los registros de cada uno de los dispositivos que se utilicen para llevar el citado control, en el trimestre inmediato anterior al de su declaración. | C34: Artículo 19 fracción X LIEPS, regla 5.2.1 RMF 2024 | D34: Anexo 9 | E34: No proporcionar la información a que se refiere el artículo 19, fracciones X y XVI de la Ley del Impuesto Especial sobre Producción y Servicios. Fundamento: Artículo 81 fracción XIX CFF. | F34: De $23,940.00 a $47,930.00 Fundamento: Artículo 82 fracción XIX CFF.
B37: Producto | C37: Inciso del artículo 2 fracción I LIEPS
B38: Combustibles automotrices | C38: D
B39: Obligaciones | C39: Fundamento | D39: Formato MULTI-IEPS
B40: Proporcionar a las autoridades fiscales durante el mes de marzo de cada año, la información que corresponda de los bienes que produjeron, enajenaron o importaron en el año inmediato anterior, respecto de su consumo por entidad federativa e impuesto correspondiente, así como de los servicios prestados por establecimiento en cada entidad federativa. | C40: Artículo 19 fracción VI LIEPS, regla 5.2.1 RMF 2024 | D40: Anexo 8 | E40: Artículo 91 CFF. La infracción en cualquier forma a las disposiciones fiscales, diversa a las previstas en este Capítulo, se sancionará con multa $490.00 a $4,640.00
B41: Declaración trimestral de los 50 principales clientes y proveedores. | C41: Artículo 19 fracción VIII LIEPS | D41: Anexo 1 | E41: No presentar la información a que se refieren el 19, fracciones VIII, IX y XII, de la Ley del Impuesto Especial sobre Producción y Servicios, dentro del plazo previsto en dichos preceptos, o no presentarla conforme lo establecen los mismos. Fundamento: Artículo 81 fracción VIII CFF. | F41: De $96,230.00 a $288,660.00 Fundamento: Artículo 82 fracción VIII CFF.
B42: Los fabricantes, productores o envasadores, deberán llevar un control físico del volumen fabricado, producido o envasado, según corresponda, así como reportar trimestralmente, en los meses de abril, julio, octubre y enero, del año que corresponda, la lectura mensual de los registros de cada uno de los dispositivos que se utilicen para llevar el citado control, en el trimestre inmediato anterior al de su declaración. | C42: Artículo 19 fracción X LIEPS, regla 5.2.1 RMF 2024 | D42: Anexo 9 | E42: No proporcionar la información a que se refiere el artículo 19, fracciones X y XVI de la Ley del Impuesto Especial sobre Producción y Servicios. Fundamento: Artículo 81 fracción XIX CFF. | F42: De $23,940.00 a $47,930.00 Fundamento: Artículo 82 fracción XIX CFF.
B43: Declaración trimestral del precio de enajenación de cada producto, valor y volumen de los mismos, en caso de vinos de mesa es semestral | C43: Artículo 19 fracción XIII LIEPS, regla 5.2.1 RMF 2024 | D43: Anexo 1 | E43: No proporcionar la información a que se refiere el artículo 19, fracciones II, tercer párrafo, XIII y XV de la Ley del Impuesto Especial sobre Producción y Servicios. Fundamento: Artículo 81 fracción XVIII CFF. | F43: De $14,380.00 a $23,940.00 Fundamento: Artículo 82 fracción XVIII CFF.
B46: Producto | C46: Inciso del artículo 2 fracción I LIEPS
B47: Bebidas energetizantes, así como concentrados, polvos y jarabes para preparar bebidas energetizantes | C47: F
B48: Obligaciones | C48: Fundamento | D48: Formato MULTI-IEPS
B49: Declaración trimestral de los contribuyentes que se les traslado el IEPS expresamente y por separado. | C49: Artículo 19 fracción II LIEPS, regla 5.2.1 RMF 2024 | D49: Anexo 1 | E49: No proporcionar la información a que se refiere el artículo 19, fracciones II, tercer párrafo, XIII y XV de la Ley del Impuesto Especial sobre Producción y Servicios. Fundamento: Artículo 81 fracción XVIII CFF. | F49: De $14,380.00 a $23,940.00 Fundamento: Artículo 82 fracción XVIII CFF.
B50: Proporcionar a las autoridades fiscales durante el mes de marzo de cada año, la información que corresponda de los bienes que produjeron, enajenaron o importaron en el año inmediato anterior, respecto de su consumo por entidad federativa e impuesto correspondiente, así como de los servicios prestados por establecimiento en cada entidad federativa. | C50: Artículo 19 fracción VI LIEPS, regla 5.2.1 RMF 2024 | D50: Anexo 8 | E50: Artículo 91 CFF. La infracción en cualquier forma a las disposiciones fiscales, diversa a las previstas en este Capítulo, se sancionará con multa $490.00 a $4,640.00
B51: Declaración trimestral de los 50 principales clientes y proveedores. | C51: Artículo 19 fracción VIII LIEPS | D51: Anexo 1 | E51: No presentar la información a que se refieren el 19, fracciones VIII, IX y XII, de la Ley del Impuesto Especial sobre Producción y Servicios, dentro del plazo previsto en dichos preceptos, o no presentarla conforme lo establecen los mismos. Fundamento: Artículo 81 fracción VIII CFF. | F51: De $96,230.00 a $288,660.00 Fundamento: Artículo 82 fracción VIII CFF.
B52: Los fabricantes, productores o envasadores, deberán llevar un control físico del volumen fabricado, producido o envasado, según corresponda, así como reportar trimestralmente, en los meses de abril, julio, octubre y enero, del año que corresponda, la lectura mensual de los registros de cada uno de los dispositivos que se utilicen para llevar el citado control, en el trimestre inmediato anterior al de su declaración. | C52: Artículo 19 fracción X LIEPS, regla 5.2.1 RMF 2024 | D52: Anexo 8 | E52: No proporcionar la información a que se refiere el artículo 19, fracciones X y XVI de la Ley del Impuesto Especial sobre Producción y Servicios. Fundamento: Artículo 81 fracción XIX CFF. | F52: De $23,940.00 a $47,930.00 Fundamento: Artículo 82 fracción XIX CFF.
B53: Declaración trimestral del precio de enajenación de cada producto, valor y volumen de los mismos, en caso de vinos de mesa es semestral | C53: Artículo 19 fracción XIII LIEPS, regla 5.2.1 RMF 2024 | D53: Anexo 1 | E53: No proporcionar la información a que se refiere el artículo 19, fracciones II, tercer párrafo, XIII y XV de la Ley del Impuesto Especial sobre Producción y Servicios. Fundamento: Artículo 81 fracción XVIII CFF. | F53: De $12,700.00 a $21,150.00 Fundamento: Artículo 82 fracción XVIII CFF.
B56: Producto | C56: Inciso del artículo 2 fracción I LIEPS
B57: Bebidas saborizadas; concentrados, polvos, jarabes, esencias o extractos de sabores, que al diluirse permitan obtener bebidas saborizadas; y jarabes o concentrados para preparar bebidas saborizadas que se expendan en envases abiertos utilizando aparatos automáticos, eléctricos o mecánicos, siempre que los bienes a que se refiere este inciso contengan cualquier tipo de azúcares añadidos | C57: G
B58: Obligaciones | C58: Fundamento | D58: Formato MULTI-IEPS
B59: Declaración trimestral de los contribuyentes que se les traslado el IEPS expresamente y por separado. | C59: Artículo 19 fracción II LIEPS, regla 5.2.1 RMF 2024 | D59: Anexo 1 | E59: No proporcionar la información a que se refiere el artículo 19, fracciones II, tercer párrafo, XIII y XV de la Ley del Impuesto Especial sobre Producción y Servicios. Fundamento: Artículo 81 fracción XVIII CFF. | F59: De $14,380.00 a $23,940.00 Fundamento: Artículo 82 fracción XVIII CFF.
B60: Proporcionar a las autoridades fiscales durante el mes de marzo de cada año, la información que corresponda de los bienes que produjeron, enajenaron o importaron en el año inmediato anterior, respecto de su consumo por entidad federativa e impuesto correspondiente, así como de los servicios prestados por establecimiento en cada entidad federativa. | C60: Artículo 19 fracción VI LIEPS, regla 5.2.1 RMF 2024 | D60: Anexo 8 | E60: Artículo 91 CFF. La infracción en cualquier forma a las disposiciones fiscales, diversa a las previstas en este Capítulo, se sancionará con multa $490.00 a $4,640.00
B61: Declaración trimestral de los 50 principales clientes y proveedores. | C61: Artículo 19 fracción VIII LIEPS | D61: Anexo 1 | E61: No presentar la información a que se refieren el 19, fracciones VIII, IX y XII, de la Ley del Impuesto Especial sobre Producción y Servicios, dentro del plazo previsto en dichos preceptos, o no presentarla conforme lo establecen los mismos. Fundamento: Artículo 81 fracción VIII CFF. | F61: De $96,230.00 a $288,660.00 Fundamento: Artículo 82 fracción VIII CFF.
B62: Los fabricantes, productores o envasadores, de bebidas saborizadas con azúcares añadidos deberán llevar un control físico del volumen fabricado, producido o envasado, según corresponda, así como reportar trimestralmente, en los meses de abril, julio, octubre y enero, del año que corresponda, la lectura mensual de los registros de cada uno de los dispositivos que se utilicen para llevar el citado control, en el trimestre inmediato anterior al de su declaración. | C62: Artículo 19 fracción X LIEPS, regla 5.2.1 RMF 2024 | D62: Anexo 9 | E62: No proporcionar la información a que se refiere el artículo 19, fracciones X y XVI de la Ley del Impuesto Especial sobre Producción y Servicios. Fundamento: Artículo 81 fracción XIX CFF. | F62: De $23,940.00 a $47,930.00 Fundamento: Artículo 82 fracción XIX CFF.
B65: Producto | C65: Inciso del artículo 2 fracción I LIEPS
B66: Combustibles Fósiles | C66: H
B67: Obligaciones | C67: Fundamento | D67: Formato MULTI-IEPS
B68: Proporcionar a las autoridades fiscales durante el mes de marzo de cada año, la información que corresponda de los bienes que produjeron, enajenaron o importaron en el año inmediato anterior, respecto de su consumo por entidad federativa e impuesto correspondiente, así como de los servicios prestados por establecimiento en cada entidad federativa. | C68: Artículo 19 fracción VI LIEPS, regla 5.2.1 RMF 2024 | D68: Anexo 8 | E68: Artículo 91 CFF. La infracción en cualquier forma a las disposiciones fiscales, diversa a las previstas en este Capítulo, se sancionará con multa $490.00 a $4,640.00
B69: Declaración trimestral de los 50 principales clientes y proveedores. | C69: Artículo 19 fracción VIII LIEPS | D69: Anexo 1 | E69: No presentar la información a que se refieren el 19, fracciones VIII, IX y XII, de la Ley del Impuesto Especial sobre Producción y Servicios, dentro del plazo previsto en dichos preceptos, o no presentarla conforme lo establecen los mismos. Fundamento: Artículo 81 fracción VIII CFF. | F69: De $96,230.00 a $288,660.00 Fundamento: Artículo 82 fracción VIII CFF.
B70: Los fabricantes, productores o envasadores, deberán llevar un control físico del volumen fabricado, producido o envasado, según corresponda, así como reportar trimestralmente, en los meses de abril, julio, octubre y enero, del año que corresponda, la lectura mensual de los registros de cada uno de los dispositivos que se utilicen para llevar el citado control, en el trimestre inmediato anterior al de su declaración. | C70: Artículo 19 fracción X LIEPS, regla 5.2.1 RMF 2024 | D70: Anexo 9 | E70: No proporcionar la información a que se refiere el artículo 19, fracciones X y XVI de la Ley del Impuesto Especial sobre Producción y Servicios. Fundamento: Artículo 81 fracción XIX CFF. | F70: De $23,940.00 a $47,930.00 Fundamento: Artículo 82 fracción XIX CFF.
B71: Declaración trimestral del precio de enajenación de cada producto, valor y volumen de los mismos, en caso de vinos de mesa es semestral | C71: Artículo 19 fracción XIII LIEPS, regla 5.2.1 RMF 2024 | D71: Anexo 1 | E71: No proporcionar la información a que se refiere el artículo 19, fracciones II, tercer párrafo, XIII y XV de la Ley del Impuesto Especial sobre Producción y Servicios. Fundamento: Artículo 81 fracción XVIII CFF. | F71: De $12,700.00 a $21,150.00 Fundamento: Artículo 82 fracción XVIII CFF.
B74: Producto | C74: Inciso del artículo 2 fracción I LIEPS
B75: Plaguicidas | C75: I
B76: Obligaciones | C76: Fundamento | D76: Formato MULTI-IEPS
B77: Proporcionar a las autoridades fiscales durante el mes de marzo de cada año, la información que corresponda de los bienes que produjeron, enajenaron o importaron en el año inmediato anterior, respecto de su consumo por entidad federativa e impuesto correspondiente, así como de los servicios prestados por establecimiento en cada entidad federativa. | C77: Artículo 19 fracción VI LIEPS, regla 5.2.1 RMF 2024 | D77: Anexo 8 | E77: Artículo 91 CFF. La infracción en cualquier forma a las disposiciones fiscales, diversa a las previstas en este Capítulo, se sancionará con multa $490.00 a $4,640.00
B78: Declaración trimestral de los 50 principales clientes y proveedores. | C78: Artículo 19 fracción VIII LIEPS | D78: Anexo 1 | E78: No presentar la información a que se refieren el 19, fracciones VIII, IX y XII, de la Ley del Impuesto Especial sobre Producción y Servicios, dentro del plazo previsto en dichos preceptos, o no presentarla conforme lo establecen los mismos. Fundamento: Artículo 81 fracción VIII CFF. | F78: De $96,230.00 a $288,660.00 Fundamento: Artículo 82 fracción VIII CFF.
B79: Los fabricantes, productores o envasadores, deberán llevar un control físico del volumen fabricado, producido o envasado, según corresponda, así como reportar trimestralmente, en los meses de abril, julio, octubre y enero, del año que corresponda, la lectura mensual de los registros de cada uno de los dispositivos que se utilicen para llevar el citado control, en el trimestre inmediato anterior al de su declaración. | C79: Artículo 19 fracción X LIEPS, regla 5.2.1 RMF 2024 | D79: Anexo 9 | E79: No proporcionar la información a que se refiere el artículo 19, fracciones X y XVI de la Ley del Impuesto Especial sobre Producción y Servicios. Fundamento: Artículo 81 fracción XIX CFF. | F79: De $23,940.00 a $47,930.00 Fundamento: Artículo 82 fracción XIX CFF.
B82: Producto | C82: Inciso del artículo 2 fracción I LIEPS
B83: Alimentos no básicos que se listan a continuación, con una densidad calórica de 275 kilocalorías o mayor por cada 100 gramos | C83: J
B84: Obligaciones | C84: Fundamento | D84: Formato MULTI-IEPS
B85: Declaración trimestral de los contribuyentes que se les traslado el IEPS expresamente y por separado. | C85: Artículo 19 fracción II LIEPS, regla 5.2.1 RMF 2024 | D85: Anexo 1 | E85: No proporcionar la información a que se refiere el artículo 19, fracciones II, tercer párrafo, XIII y XV de la Ley del Impuesto Especial sobre Producción y Servicios. Fundamento: Artículo 81 fracción XVIII CFF. | F85: De $14,380.00 a $23,940.00 Fundamento: Artículo 82 fracción XVIII CFF.
B86: Proporcionar a las autoridades fiscales durante el mes de marzo de cada año, la información que corresponda de los bienes que produjeron, enajenaron o importaron en el año inmediato anterior, respecto de su consumo por entidad federativa e impuesto correspondiente, así como de los servicios prestados por establecimiento en cada entidad federativa. | C86: Artículo 19 fracción VI LIEPS, regla 5.2.1 RMF 2024 | D86: Anexo 8 | E86: Artículo 91 CFF. La infracción en cualquier forma a las disposiciones fiscales, diversa a las previstas en este Capítulo, se sancionará con multa $490.00 a $4,640.00
B87: Declaración trimestral de los 50 principales clientes y proveedores. | C87: Artículo 19 fracción VIII LIEPS | D87: Anexo 1 | E87: No presentar la información a que se refieren el 19, fracciones VIII, IX y XII, de la Ley del Impuesto Especial sobre Producción y Servicios, dentro del plazo previsto en dichos preceptos, o no presentarla conforme lo establecen los mismos. Fundamento: Artículo 81 fracción VIII CFF. | F87: De $96,230.00 a $288,660.00 Fundamento: Artículo 82 fracción VIII CFF.

Sheet FUNDAMENTO (hidden)

Sheet EJEMPLO (hidden)
J1: =I6/1.53 -> 1019.607843
B2: Ventas
B3: Fecha | C3: Producto | D3: RFC del cliente | E3: Cliente | F3: Entidad federativa | G3: Cantidad | H3: Unidad de medida | I3: Importe | J3: IEPS | K3: IVA | L3: Total | M3: Método de pago | N3: ¿Exento?
A4: ① | B4: 01/05/20xx | C4: Chocolate | D4: XAXX010101000 | E4: Público en general | F4: 09 | G4: 10 | H4: Caja | I4: 850 | K4: =(I4+J4)*0% -> 0 | L4: =SUM(I4:K4) -> 850 | M4: PUE | N4: No
A5: ② | B5: 01/05/20xx | C5: Vino de mesa | D5: MEM890603MJ7 | E5: MEM, S.A. | F5: 09 | G5: 30 | H5: Caja | I5: 8900 | J5: =I5*0.265 -> 2358.5 | K5: =(I5+J5)*16% -> 1801.36 | L5: 13059.86 | M5: PUE | N5: No
A6: ③ | B6: 01/05/20xx | C6: Brandy | D6: XAXX010101000 | E6: Público en general | F6: 09 | G6: 5 | H6: Botella | I6: 1560 | K6: =(I6+J6)*16% -> 249.6 | L6: 1809.6 | M6: PUE | N6: No
A7: ① | B7: 01/05/20xx | C7: Dulces | D7: XAXX010101000 | E7: Público en general | F7: 09 | G7: 1 | H7: Bolsa | I7: 89 | K7: =(I7+J7)*0% -> 0 | L7: 89 | M7: PUE | N7: No
A8: ④ | B8: 01/05/20xx | C8: Cigarro | D8: XAXX010101000 | E8: Público en general | F8: 09 | G8: 2 | H8: Paquete | I8: 120 | K8: =(I8+J8)*16% -> 19.2 | L8: 139.2 | M8: PUE | N8: Sí
A9: ④ | B9: 01/05/20xx | C9: Cerveza | D9: XAXX010101000 | E9: Público en general | F9: 09 | G9: 10 | H9: Botellas | I9: 210 | K9: =(I9+J9)*16% -> 33.6 | L9: 243.6 | M9: PUE | N9: Sí
A10: ① | B10: 01/05/20xx | C10: Chocolate | D10: JBE870603LO9 | E10: JBE, S.A. DE C.V. | F10: 09 | G10: 30 | H10: Caja | I10: =78.7*G10 -> 2361 | J10: =I10*0.265 -> 625.665 | K10: =(I10+J10)*16% -> 477.8664 | L10: 3464.5314 | M10: PUE | N10: No
A11: ② | B11: 01/05/20xx | C11: Vino de mesa | D11: XAXX010101000 | E11: Público en general | F11: 09 | G11: 8 | H11: Botella | I11: 960 | K11: =(I11+J11)*16% -> 153.6 | L11: 1113.6 | M11: PUE | N11: No
A12: ③ | B12: 01/05/20xx | C12: Brandy | D12: JBE870603LO9 | E12: JBE, S.A. DE C.V. | F12: 09 | G12: 5 | H12: Caja | I12: 1890 | J12: =I12*0.53 -> 1001.7 | K12: =(I12+J12)*16% -> 462.672 | L12: 3354.372 | M12: PUE | N12: No
A13: ① | B13: 01/05/20xx | C13: Dulces | D13: MEM890603MJ7 | E13: MEM, S.A. | F13: 09 | G13: 20 | H13: Bolsa | I13: 750 | K13: =(I13+J13)*0% -> 0 | L13: 750 | M13: PUE | N13: No
I14: =SUM(I4:I13) -> 17690 | J14: =SUM(J4:J13) -> 3985.865 | K14: 3197.8984 | L14: 24873.7634
B15: Registro contable del 01/05/20xx
B16: Clientes | E16: =L14 -> 24873.7634
B17: IEPS trasladado pendiente de cobro | F17: =J14+(((I4+I7+I13)/1.08)*0.08)+((I6/1.53)*0.53)+((I11/1.265)*0.265) -> 4852.474987
B18: IVA trasladado pendiente de cobro | F18: =K14 -> 3197.8984
B19: Ventas IEPS 8%, IVA 0% | F19: =I10+((I4+I7+I13)/1.08) -> 3924.888889 | G19: ①
B20: Ventas IEPS 26.5%, IVA 16% | F20: =I5+(I11/1.265) -> 9658.893281 | G20: ②
B21: Ventas IEPS 53%, IVA 16% | F21: =I12+(I6/1.53) -> 2909.607843 | G21: ③
B22: Ventas IVA 16% | F22: =I8+I9 -> 330 | G22: ④
E23: =SUM(E16:E22) -> 24873.7634 | F23: =SUM(F16:F22) -> 24873.7634
B26: Ventas cobradas
B28: Fecha | C28: Producto | D28: RFC del cliente | E28: Cliente | F28: Entidad federativa | G28: Cantidad | H28: Unidad de medida | I28: Importe | J28: IEPS | K28: IVA | L28: Total | M28: Método de pago | N28: ¿Exento?
B29: 01/05/20xx | C29: Chocolate | D29: XAXX010101000 | E29: Público en general | F29: 09 | G29: 10 | H29: Caja | I29: =(I4/1.08) -> 787.037037 | J29: =I29*0.08 -> 62.96296296 | K29: 0 | L29: 850 | M29: PUE | N29: No
B30: 01/05/20xx | C30: Vino de mesa | D30: MEM890603MJ7 | E30: MEM, S.A. | F30: 09 | G30: 30 | H30: Caja | I30: 8900 | J30: 2358.5 | K30: 1801.36 | L30: 13059.86 | M30: PUE | N30: No
B31: 01/05/20xx | C31: Brandy | D31: XAXX010101000 | E31: Público en general | F31: 09 | G31: 5 | H31: Botella | I31: =(I6/1.53) -> 1019.607843 | J31: =I31*0.53 -> 540.3921569 | K31: 249.6 | L31: 1809.6 | M31: PUE | N31: No
B32: 01/05/20xx | C32: Dulces | D32: XAXX010101000 | E32: Público en general | F32: 09 | G32: 1 | H32: Bolsa | I32: =(I7/1.08) -> 82.40740741 | J32: =I32*0.08 -> 6.592592593 | K32: 0 | L32: 89 | M32: PUE | N32: No
B33: 01/05/20xx | C33: Chocolate | D33: JBE870603LO9 | E33: JBE, S.A. DE C.V. | F33: 09 | G33: 30 | H33: Bolsa | I33: 2361 | J33: 625.665 | K33: 477.8664 | L33: 3464.5314 | M33: PUE | N33: No
B34: 01/05/20xx | C34: Vino de mesa | D34: XAXX010101000 | E34: Público en general | F34: 09 | G34: 8 | H34: Botella | I34: =(I11/1.265) -> 758.8932806 | J34: =I34*0.265 -> 201.1067194 | K34: 153.6 | L34: 1113.6 | M34: PUE | N34: No
B35: 01/05/20xx | C35: Brandy | D35: JBE870603LO9 | E35: JBE, S.A. DE C.V. | F35: 09 | G35: 5 | H35: Caja | I35: 1890 | J35: 1001.7 | K35: 462.672 | L35: 3354.372 | M35: PUE | N35: No
B36: 01/05/20xx | C36: Dulces | D36: MEM890603MJ7 | E36: MEM, S.A. | F36: 09 | G36: 20 | H36: Bolsa | I36: =(I13/1.08) -> 694.4444444 | J36: =I36*0.08 -> 55.55555556 | K36: 0 | L36: 750 | M36: PUE | N36: No
I37: =SUM(I29:I36) -> 16493.39001 | J37: =SUM(J29:J36) -> 4852.474987 | K37: 3145.0984 | L37: 24490.9634
B39: Compras
B40: Fecha | C40: Producto | D40: RFC del cliente | E40: Cliente | F40: Entidad federativa | G40: Cantidad | H40: Unidad de medida | I40: Importe | J40: IEPS | K40: IVA | L40: Total | M40: Método de pago | N40: ¿Exento?
B41: 18/05/20xx | C41: Vino de mesa | D41: RER900603LO9 | E41: RER, S.A. DE C.V. | F41: 15 | G41: 100 | H41: Caja | I41: 54000 | J41: =I41*0.265 -> 14310 | K41: =(I41+J41)*16% -> 10929.6 | L41: =SUM(I41:K41) -> 79239.6 | M41: PUE | N41: No
B46: Determinación de IEPS mensual
B48: IEPS trasladado cobrado | D48: =SUM(C49:C50) -> 750.7761111
B49: Chocolate | C49: =J29+J33 -> 688.627963
B50: Dulces (productos de confiteria) | C50: =J32+J36 -> 62.14814815
B51: (-) IEPS acreditable pagado | D51: 0
B52: (=) IEPS por pagar | D52: =D48-D51 -> 750.7761111
B55: IEPS trasladado cobrado | D55: =SUM(C56:C57) -> 4101.698876
B56: Vino de mesa hasta 14° GL | C56: =J30+J34 -> 2559.606719
B57: Brandy más de 20° GL | C57: =J31+J35 -> 1542.092157
B58: (-) IEPS acreditable pagado | D58: =J41 -> 14310
B59: (=) IEPS saldo a favor | D59: =D55-D58 -> -10208.30112
C61: Saldo a favor
B62: Mayo 20xx | C62: 10208

Sheet ANEXO1 (hidden)
B1: ANEXO 1 - INFORMACIÓN SOBRE IMPORTE Y VOLUMEN DE COMPRAS Y VENTAS
B2: Periodo | C2: Octubre-Diciembre | D2: Año | E2: 2025
B4: Campo1 | C4: Campo2 | D4: Campo3 | E4: Campo4 | F4: Campo5 | G4: Campo6 | H4: Campo7 | I4: Campo8 | J4: Campo9 | K4: Campo10 | L4: Campo11 | M4: Campo12 | N4: Campo13 | O4: Campo14 | P4: Campo15 | Q4: Campo16 | R4: Campo17 | S4: Campo18 | T4: Campo19 | U4: Campo20 | V4: Campo21 | W4: Campo22 | X4: Campo23 | Y4: Campo24 | Z4: Campo25 | AA4: Campo26
B5: TIPO DE OPERACIÓN | C5: RFC DEL CLIENTE O PROVEEDOR | D5: APELLIDO PATERNO, APELLIDO MATERNO, NOMBRE (S) | E5: CLAVE DE LA ENTIDAD FEDERATIVA | F5: TIPO DE PRODUCTO | G5: EMPRESA TABACALERA | H5: CLAVE GENERICA DEL PRODUCTO | I5: GRADUACION | J5: Volumen total de enajenación por tipo de producto | K5: EMPAQUE | L5: PRESENTACION | M5: UNIDAD DE MEDIDA | N5: VALOR DE LA OPERACIÓN ANTES DE IMPUESTOS | O5: Valor de la operación valuada al precio de venta al detallista | P5: IEPS PAGADO / TRASLADADO | Q5: IVA PAGADO / TRASLADADO | R5: IEPS trasladado por la aplicación de la cuota específica de cigarros enajenados | S5: IEPS trasladado por la aplicación de la cuota específica por el peso total en gramos de los puros y otros tabacos labrados enajenados | T5: IEPS trasladado por la aplicación de la cuota específica por el peso total en gramos de los puros y otros tabacos labrados hechos enteramente a mano enajenados | U5: IEPS trasladado por la aplicación de la cuota de bebidas saborizadas | V5: IEPS trasladado por la aplicación de la cuota de bebidas energetizantes | W5: IEPS pagados en la importación por la aplicación de la cuota específica de cigarros | X5: IEPS pagados en la importación por la aplicación de la cuota específica de los puros y otros tabacos labrados | Y5: IEPS pagados en la importación por la aplicación de la cuota específica de los puros y otros tabacos labrados hechos enteramente a mano | Z5: IEPS pagado en la importación por la aplicación de la cuota de bebidas saborizadas | AA5: IEPS pagado en la importación por la aplicación de la cuota de bebidas energetizantes
B6: G | C6: XAXX010101000 | D6: PUBLICO EN GENERAL | E6: 09 | F6: 001 | G6: 00 | H6: 022 | I6: 003 | J6: 5 | K6: 004 | L6: 0.750 | M6: 005 | N6: 1020 | P6: 0 | Q6: 250
B7: C | C7: JBE870603LO9 | D7: JBE SA DE CV | E7: 09 | F7: 001 | G7: 00 | H7: 022 | I7: 003 | J7: 5 | K7: 005 | L7: 12 | M7: 005 | N7: 1890 | P7: 1002 | Q7: 463

Sheet ANEXO3 (hidden)
B1: ANEXO 3 - INFORMACIÓN DE LOS EQUIPOS DE PRODUCCIÓN, DESTILACIÓN O ENVASAMIENTO
B2: Periodo | D2: Año
B4: Campo1 | C4: Campo2 | D4: Campo3 | E4: Campo4 | F4: Campo5 | G4: Campo6 | H4: Campo7 | I4: Campo8 | J4: Campo9 | K4: Campo10 | L4: Campo11 | M4: Campo12
B5: Localización de la planta | C5: Tipo de equipos | D5: Fabricante | E5: Marca | F5: Modelo | G5: Número de serie | H5: País de origen | I5: Capacidad (litros 55% / 24 hrs) | J5: Velocidad ( litros / minutos) | K5: Platos | L5: Válvulas | M5: Alambiques
C6: E

Sheet ANEXO4 (hidden)
B1: ANEXO 4 - REPORTE DE INICIO O TÉRMINO DEL PROCESO DE PRODUCCIÓN O DESTILACIÓN
B2: Periodo | D2: Año
B4: Campo1 | C4: Campo2 | D4: Campo3 | E4: Campo4 | F4: Campo5 | G4: Campo6 | H4: Campo7 | I4: Campo8 | J4: Campo9 | K4: Campo10 | L4: Campo11
B5: Fecha de inicio | C5: Fecha de término | D5: Indique la periodicidad del proceso | E5: Materia prima a utilizar | F5: Cantidad | G5: Unidad de medida | H5: Existencias (litros) | I5: Volumen estimado a destilar (lts 55%) | J5: Volumen fabricado o producido (lts 55%) | K5: Merma | L5: Uso de la producción

Sheet ANEXO5 (hidden)
B1: ANEXO 5 - REPORTE DE INICIO O TÉRMINO DEL PROCESO DE ENVASAMIENTO
B2: Periodo | D2: Año
B4: Campo1 | C4: Campo2 | D4: Campo3 | E4: Campo4 | F4: Campo5 | G4: Campo6 | H4: Campo7 | I4: Campo8 | J4: Campo9 | K4: Campo10 | L4: Campo11 | M4: Campo12
B5: Fecha de inicio | C5: Fecha de término | D5: Indique la periodicidad del proceso | E5: Nombre genérico de la bebida a envasar | F5: Procedencia | G5: Graduación alcohólica | H5: Capacidad de la botella (litros) | I5: Unidades | J5: Destino de la producción | K5: Litros envasados durante el proceso | L5: Mermas | M5: Litros ingresados a la planta al inicio del proceso

Sheet ANEXO8V (hidden)
B1: Distribución de producción y ventas por entidad federativa
B2: Año | D2: Periodo
B4: Campo1 | C4: Campo2 | D4: Campo3 | E4: Campo4 | F4: Campo5
B5: Identificación del tercero | C5: Producto o servicio que declara | D5: Entidad federativa | E5: Valor total de la producción | F5: Importe de las ventas

Sheet ANEXO9 (hidden)
B1: ANEXO 9 - INFORMACIÓN DE REPORTE TRIMESTRAL DE LOS REGISTROS DE CADA UNO DE LOS DISPOSITIVOS QUE SE UTILICEN PARA LLEVAR EL CONTROL FÍSICO DEL VOLUMEN FABRICADO, PRODUCIDO O ENVASADO
B2: Periodo | D2: Año
B4: Campo1 | C4: Campo2 | D4: Campo3 | E4: Campo4 | F4: Campo5 | G4: Campo6 | H4: Campo7 | I4: Campo8 | J4: Campo9 | K4: Campo10 | L4: Campo11 | M4: Campo12 | N4: Campo13 | O4: Campo14 | P4: Campo15
B5: Indique si se trata de | C5: Indique el rubro de que se trate | D5: Empresa tabacalera | E5: Tipo de producto tabacos | F5: Tipo de producto confis | G5: Unidades | H5: Empaque | I5: Presentación | J5: Unidad de medida | K5: Número de cajas producidas en el periódo | L5: Número de envases por caja | M5: Número de cajas de cigarros o tabacos labrados producidos en el periódo | N5: Número de cajetillas por caja | O5: Lectura de Integrador de Volumen aparente Inicial | P5: Lectura de Integrador de Volumen aparente Final

Sheet CLAVEG (hidden)
B2: Bebidas alcohólicas | E2: Combustibles fosiles | H2: Plaguicidas | K2: Alimentos con alta densidad calórica | N2: Combustibles automotrices
B4: Clave | C4: Descripción | E4: Clave | F4: Descripción | H4: Clave | I4: Descripción | K4: Clave | L4: Descripción | N4: Clave | O4: Descripción
B5: 001 | C5: Aguardiente Abocado o Reposado | E5: 002 | F5: Butano | H5: 002 | I5: Categoría 3 | K5: 008 | L5: Alimentos preparadoa a base de cereales | N5: 004 | O5: Combustibles no fósiles
B6: 005 | C6: Aguardiente añejo | E6: 009 | F6: Carbón mineral | H6: 003 | I6: Categoría 4 | K6: 001 | L6: Botanas | N6: 003 | O6: Diésel
B7: 008 | C7: Aguardiente con Sabor | E7: 006 | F7: Combustóleo | H7: 001 | I7: Categorías 1 y 2 | K7: 003 | L7: Chocolate y dempas productos derivados del cacao | N7: 002 | O7: Gasolina mayor o igual a 91 octanos
B8: 002 | C8: Aguardiente Standard (blanco u oro) | E8: 008 | F8: Coque de cargón | H8: 000 | I8: Sin selección | K8: 006 | L8: Cremas de cacahuate y avellanas | N8: 001 | O8: Gasolina menor a 91 octanos
B9: 023 | C9: Amaretto | E9: 007 | F9: Coque petróleo | K9: 005 | L9: Dulces de frutas y horalizas | N9: 000 | O9: Sin selección
B10: 017 | C10: Anís | E10: 005 | F10: Diesel | K10: 007 | L10: Dulces de leche
B11: 012 | C11: Bacanora | E11: 003 | F11: Gasolinas y gasavión | K11: 004 | L11: Flanes y pudines
B12: 045 | C12: Bebidas Refrescantes | E12: 010 | F12: Otros combustibles fósiles | K12: 009 | L12: Helados, nieves y paletas de hielo
B13: 022 | C13: Brandy | E13: 001 | F13: Propano | K13: 002 | L13: Productos de confiter+ia
B14: 028 | C14: Brandy Reserva | E14: 000 | F14: Sin selección | K14: 000 | L14: Sin Selección
B15: 033 | C15: Brandy Solera | E15: 004 | F15: Turbosina y otros kerosenos
B16: 037 | C16: Calvados
B17: 044 | C17: Cerveza
B18: 003 | C18: Charanda
B19: 009 | C19: Cocteles
B20: 039 | C20: Cognac V.S.
B21: 042 | C21: Cognac V.S.O.P
B22: 043 | C22: Cognac X.O.
B23: 013 | C23: Comiteco
B24: 034 | C24: Cremas base Whisky
B25: 018 | C25: Habanero
B26: 014 | C26: Lechuguilla o raicilla
B27: 024 | C27: Licor de Café o Cacao
B28: 004 | C28: Licor de hierbas regionales
B29: 010 | C29: Licores y Cremas hasta 20% Alc. Vol.
B30: 025 | C30: Licores y Cremas más de 20% Al. Vol.
B31: 015 | C31: Mezcal
B32: 047 | C32: Otros
B33: 011 | C33: Parras
B34: 007 | C34: Rompope
B35: 020 | C35: Ron
B36: 027 | C36: Ron Añejo
B37: 029 | C37: Ron con Sabor
B38: 030 | C38: Ron Reserva
B39: 000 | C39: Sin selección
B40: 016 | C40: Sotol
B41: 041 | C41: Tenessee de Luxe
B42: 036 | C42: Tenessee Standard
B43: 038 | C43: Tequila añejo 100% agave
B44: 021 | C44: Tequila joven o blanco
B45: 031 | C45: Tequila joven o blanco 100% agave
B46: 032 | C46: Tequila reposado 100% agave
B47: 026 | C47: Tequila reposado o añejo
B48: 046 | C48: Vinos de mesa
B49: 019 | C49: Vodka
B50: 035 | C50: Whisky o Whiskey, Borbon o Bourbon
B51: 040 | C51: Whisky o Whiskey, Borbon o Bourbon

Sheet PAISO (hidden)
B2: País de origen
B4: Valor | C4: Descripción
B5: XXX | C5: SIN SELECCIÓN
B6: AFG | C6: AFGANISTAN (EMIRATO ISLAMICO DE)
B7: ALB | C7: ALBANIA (REPUBLICA DE)
B8: DEU | C8: ALEMANIA (REPUBLICA FEDERAL DE)
B9: AND | C9: ANDORRA (PRINCIPADO DE)
B10: AGO | C10: ANGOLA (REPUBLICA DE)
B11: AIA | C11: ANGUILA
B12: ATG | C12: ANTIGUA Y BARBUDA (COMUNIDAD BRITANICA DE NACIONES)
B13: ANT | C13: ANTILLAS NEERLANDESAS (TERRITORIO HOLANDES DE ULTRAMAR)
B14: SAU | C14: ARABIA SAUDITA (REINO DE)
B15: DZA | C15: ARGELIA (REPUBLICA DEMOCRATICA Y POPULAR DE)
B16: ARG | C16: ARGENTINA (REPUBLICA)
B17: ARM | C17: ARMENIA (REPUBLICA DE)
B18: ABW | C18: ARUBA (TERRITORIO HOLANDES DE ULTRAMAR)
B19: AUS | C19: AUSTRALIA (COMUNIDAD DE)
B20: AUT | C20: AUSTRIA (REPUBLICA DE)
B21: AZE | C21: AZERBAIJAN (REPUBLICA AZERBAIJANI)
B22: BHS | C22: BAHAMAS (COMUNIDAD DE LAS)
B23: BHR | C23: BAHREIN (ESTADO DE)
B24: BGD | C24: BANGLADESH (REPUBLICA POPULAR DE)
B25: BRB | C25: BARBADOS (COMUNIDAD BRITANICA DE NACIONES)
B26: BEL | C26: BELGICA (REINO DE)
B27: BLZ | C27: BELICE
B28: BEN | C28: BENIN (REPUBLICA DE)
B29: BMU | C29: BERMUDAS
B30: BLR | C30: BIELORRUSIA (REPUBLICA DE)
B31: BOL | C31: BOLIVIA (REPUBLICA DE)
B32: BIH | C32: BOSNIA Y HERZEGOVINA
B33: BWA | C33: BOTSWANA (REPUBLICA DE)
B34: BRA | C34: BRASIL (REPUBLICA FEDERATIVA DE)
B35: BRN | C35: BRUNEI (ESTADO DE) (RESIDENCIA DE PAZ)
B36: BGR | C36: BULGARIA (REPUBLICA DE)
B37: BFA | C37: BURKINA FASO
B38: BDI | C38: BURUNDI (REPUBLICA DE)
B39: BTN | C39: BUTAN (REINO DE)
B40: CPV | C40: CABO VERDE (REPUBLICA DE)
B41: CYM | C41: CAIMAN (ISLAS)
B42: KHM | C42: CAMBOYA (REINO DE)
B43: CMR | C43: CAMERUN (REPUBLICA DEL)
B44: CAN | C44: CANADA
B45: RKE | C45: CANAL, ISLAS DEL (ISLAS NORMANDAS)
B46: TCD | C46: CHAD (REPUBLICA DEL)
B47: CHL | C47: CHILE (REPUBLICA DE)
B48: CHN | C48: CHINA (REPUBLICA POPULAR)
B49: CYP | C49: CHIPRE (REPUBLICA DE)
B50: CIA | C50: CIUDAD DEL VATICANO (ESTADO DE LA)
B51: CCK | C51: COCOS (KEELING, ISLAS AUSTRALIANAS)
B52: COL | C52: COLOMBIA (REPUBLICA DE)
B53: COM | C53: COMORAS (ISLAS)
B54: EMU | C54: COMUNIDAD EUROPEA
B55: COG | C55: CONGO (REPUBLICA DEL)
B56: COK | C56: COOK (ISLAS)
B57: KOR | C57: COREA (REPUBLICA DE) (COREA DEL SUR)
B58: PRK | C58: COREA (REPUBLICA POPULAR DEMOCRATICA DE) (COREA DEL NORTE)
B59: CIV | C59: COSTA DE MARFIL (REPUBLICA DE LA)
B60: CRI | C60: COSTA RICA (REPUBLICA DE)
B61: HRV | C61: CROACIA (REPUBLICA DE)
B62: CUB | C62: CUBA (REPUBLICA DE)
B63: CUR | C63: CURAZAO (TERRITORIO HOLANDES DE ULTRAMAR)
B64: DNK | C64: DINAMARCA (REINO DE)
B65: DJI | C65: DJIBOUTI (REPUBLICA DE)
B66: DMA | C66: DOMINICA (COMUNIDAD DE)
B67: ECU | C67: ECUADOR (REPUBLICA DEL)
B68: EGY | C68: EGIPTO (REPUBLICA ARABE DE)
B69: SLV | C69: EL SALVADOR (REPUBLICA DE)
B70: ARE | C70: EMIRATOS ARABES UNIDOS
B71: ERI | C71: ERITREA (ESTADO DE)
B72: SVN | C72: ESLOVENIA (REPUBLICA DE)
B73: ESP | C73: ESPAÑA (REINO DE)
B74: DSM | C74: ESTADO FEDERADO DE MICRONESIA
B75: USA | C75: ESTADOS UNIDOS DE AMERICA
B76: EST | C76: ESTONIA (REPUBLICA DE)
B77: ETH | C77: ETIOPIA (REPUBLICA DEMOCRATICA FEDERAL)
B78: FJI | C78: FIDJI (REPUBLICA DE)
B79: PHL | C79: FILIPINAS (REPUBLICA DE LAS)
B80: FIN | C80: FINLANDIA (REPUBLICA DE)
B81: FRA | C81: FRANCIA (REPUBLICA FRANCESA)
B82: GZA | C82: FRANJA DE GAZA
B83: GAB | C83: GABONESA (REPUBLICA)
B84: GMB | C84: GAMBIA (REPUBLICA DE LA)
B85: GEO | C85: GEORGIA (REPUBLICA DE)
B86: GHA | C86: GHANA (REPUBLICA DE)
B87: GIB | C87: GIBRALTAR (R.U.)
B88: GRD | C88: GRANADA
B89: GRC | C89: GRECIA (REPUBLICA HELENICA)
B90: GRL | C90: GROENLANDIA (DINAMARCA)
B91: GLP | C91: GUADALUPE (DEPARTAMENTO DE)
B92: GUM | C92: GUAM (E.U.A.)
B93: GTM | C93: GUATEMALA (REPUBLICA DE)
B94: GIN | C94: GUINEA (REPUBLICA DE)
B95: GNQ | C95: GUINEA ECUATORIAL (REPUBLICA DE)
B96: GNB | C96: GUINEA-BISSAU (REPUBLICA DE)
B97: GUY | C97: GUYANA (REPUBLICA COOPERATIVA DE)
B98: GUF | C98: GUYANA FRANCESA
B99: HTI | C99: HAITI (REPUBLICA DE)
B100: HND | C100: HONDURAS (REPUBLICA DE)
B101: HKG | C101: HONG KONG (REGION ADMINISTRATIVA ESPECIAL DE LA REPUBLICA)
B102: HUN | C102: HUNGRIA (REPUBLICA DE)
B103: IND | C103: INDIA (REPUBLICA DE)
B104: IDN | C104: INDONESIA (REPUBLICA DE)
B105: IRQ | C105: IRAK (REPUBLICA DE)
B106: IRN | C106: IRAN (REPUBLICA ISLAMICA DEL)
B107: IRL | C107: IRLANDA (REPUBLICA DE)
B108: ISL | C108: ISLANDIA (REPUBLICA DE)
B109: LHM | C109: ISLAS HEARD Y MCDONALD
B110: FLK | C110: ISLAS MALVINAS (R.U.)
B111: MNP | C111: ISLAS MARIANAS SEPTENTRIONALES
B112: MHL | C112: ISLAS MARSHALL
B113: SLB | C113: ISLAS SALOMON (COMUNIDAD BRITANICA DE NACIONES)
B114: SJM | C114: ISLAS SVALBARD Y JAN MAYEN (NORUEGA)
B115: TKL | C115: ISLAS TOKELAU
B116: WLF | C116: ISLAS WALLIS Y FUTUNA
B117: ISR | C117: ISRAEL (ESTADO DE)
B118: ITA | C118: ITALIA (REPUBLICA ITALIANA)
B119: JAM | C119: JAMAICA
B120: JPN | C120: JAPON
B121: JOR | C121: JORDANIA (REINO HACHEMITA DE)
B122: KAZ | C122: KAZAKHSTAN (REPUBLICA DE)
B123: KEN | C123: KENYA (REPUBLICA DE)
B124: KIR | C124: KIRIBATI (REPUBLICA DE)
B125: KWT | C125: KUWAIT (ESTADO DE)
B126: KGZ | C126: KYRGYZSTAN (REPUBLICA KIRGYZIA)
B127: LSO | C127: LESOTHO (REINO DE)
B128: LVA | C128: LETONIA (REPUBLICA DE)
B129: LBN | C129: LIBANO (REPUBLICA DE)
B130: LBR | C130: LIBERIA (REPUBLICA DE)
B131: LBY | C131: LIBIA (JAMAHIRIYA LIBIA ARABE POPULAR SOCIALISTA)
B132: LIE | C132: LIECHTENSTEIN (PRINCIPADO DE)
B133: LTU | C133: LITUANIA (REPUBLICA DE)
B134: LUX | C134: LUXEMBURGO (GRAN DUCADO DE)
B135: MAC | C135: MACAO
B136: MKD | C136: MACEDONIA (ANTIGUA REPUBLICA YUGOSLAVA DE)
B137: MDG | C137: MADAGASCAR (REPUBLICA DE)
B138: MYS | C138: MALASIA
B139: MWI | C139: MALAWI (REPUBLICA DE)
B140: MDV | C140: MALDIVAS (REPUBLICA DE)
B141: MLI | C141: MALI (REPUBLICA DE)
B142: MLT | C142: MALTA (REPUBLICA DE)
B143: MAR | C143: MARRUECOS (REINO DE)
B144: MTQ | C144: MARTINICA (DEPARTAMENTO DE) (FRANCIA)
B145: MUS | C145: MAURICIO (REPUBLICA DE)
B146: MRT | C146: MAURITANIA (REPUBLICA ISLAMICA DE)
B147: MEX | C147: MEXICO (ESTADOS UNIDOS MEXICANOS)
B148: MDA | C148: MOLDAVIA (REPUBLICA DE)
B149: MCO | C149: MONACO (PRINCIPADO DE)
B150: MNG | C150: MONGOLIA
B151: MSR | C151: MONSERRAT (ISLA)
B152: MOZ | C152: MOZAMBIQUE (REPUBLICA DE)
B153: MMR | C153: MYANMAR (UNION DE)
B154: NAM | C154: NAMIBIA (REPUBLICA DE)
B155: NRU | C155: NAURU
B156: CXI | C156: NAVIDAD (CHRISTMAS) (ISLAS)
B157: NPL | C157: NEPAL (REINO DE)
B158: NIC | C158: NICARAGUA (REPUBLICA DE)
B159: NER | C159: NIGER (REPUBLICA DE)
B160: NGA | C160: NIGERIA (REPUBLICA FEDERAL DE)
B161: NIU | C161: NIVE (ISLA)
B162: NFK | C162: NORFOLK (ISLA)
B163: NOR | C163: NORUEGA (REINO DE)
B164: NCL | C164: NUEVA CALEDONIA (TERRITORIO FRANCES DE ULTRAMAR)
B165: NZL | C165: NUEVA ZELANDIA
B166: OMN | C166: OMAN (SULTANATO DE)
B167: PIK | C167: PACIFICO, ISLAS DEL (ADMON. E.U.A.)
B168: ZYA | C168: PAISES BAJOS (REINO DE LOS) (HOLANDA)
B169: KCD | C169: PAISES NO DECLARADOS
B170: PAK | C170: PAKISTAN (REPUBLICA ISLAMICA DE)
B171: PLW | C171: PALAU (REPUBLICA DE)
B172: PAN | C172: PANAMA (REPUBLICA DE)
B173: PNG | C173: PAPUA NUEVA GUINEA (ESTADO INDEPENDIENTE DE)
B174: PRY | C174: PARAGUAY (REPUBLICA DEL)
B175: PER | C175: PERU (REPUBLICA DEL)
B176: PCN | C176: PITCAIRNS (ISLAS DEPENDENCIA BRITANICA)
B177: PYF | C177: POLINESIA FRANCESA
B178: POL | C178: POLONIA (REPUBLICA DE)
B179: PRT | C179: PORTUGAL (REPUBLICA PORTUGUESA)
B180: PRI | C180: PUERTO RICO (ESTADO LIBRE ASOCIADO DE LA COMUNIDAD DE)
B181: QAT | C181: QATAR (ESTADO DE)
B182: GBR | C182: REINO UNIDO DE LA GRAN BRETAÑA E IRLANDA DEL NORTE
B183: CAF | C183: REPUBLICA CENTROAFRICANA
B184: CZE | C184: REPUBLICA CHECA
B185: LAO | C185: REPUBLICA DEMOCRATICA POPULAR LAOS
B186: DOM | C186: REPUBLICA DOMINICANA
B187: SVK | C187: REPUBLICA ESLOVACA
B188: COD | C188: REPUBLICA POPULAR DEL CONGO
B189: RWA | C189: REPUBLICA RUANDESA
B190: REU | C190: REUNION (DEPARTAMENTO DE LA) (FRANCIA)
B191: ROM | C191: RUMANIA
B192: RUS | C192: RUSIA (FEDERACION RUSA)
B193: ESH | C193: SAHARA OCCIDENTAL (REPUBLICA ARABE SAHARAVI DEMOCRATICA)
B194: WSM | C194: SAMOA (ESTADO INDEPENDIENTE DE)
B195: KNA | C195: SAN CRISTOBAL Y NIEVES (FEDERACION DE) (SAN KITTS-NEVIS)
B196: SMR | C196: SAN MARINO (SERENISIMA REPUBLICA DE)
B197: SPM | C197: SAN PEDRO Y MIQUELON
B198: VCT | C198: SAN VICENTE Y LAS GRANADINAS
B199: SHN | C199: SANTA ELENA
B200: LCA | C200: SANTA LUCIA
B201: STP | C201: SANTO TOME Y PRINCIPE (REPUBLICA DEMOCRATICA DE)
B202: SEN | C202: SENEGAL (REPUBLICA DEL)
... 42 more rows

Sheet CODIGO (hidden)
B3: Inicial | C3: Final | D3: Estado
B4: 20000 | C4: 20997 | D4: 01 Aguascalientes
B5: 21000 | C5: 22997 | D5: 02 Baja California
B6: 23000 | C6: 23997 | D6: 03 Baja California Sur
B7: 24000 | C7: 24940 | D7: 04 Campeche
B8: 25000 | C8: 27997 | D8: 05 Coahuila
B9: 28000 | C9: 28989 | D9: 06 Colima
B10: 29000 | C10: 30997 | D10: 07 Chiapas
B11: 31000 | C11: 33997 | D11: 08 Chihuahua
B12: 01000 | C12: 16900 | D12: 09 Distrito Federal
B13: 34000 | C13: 35987 | D13: 10 Durango
B14: 36000 | C14: 38997 | D14: 11 Guanajuato
B15: 39000 | C15: 41998 | D15: 12 Guerrero
B16: 42000 | C16: 43998 | D16: 13 Hidalgo
B17: 44100 | C17: 49996 | D17: 14 Jalisco
B18: 50000 | C18: 57950 | D18: 15 Estado de México
B19: 58000 | C19: 61998 | D19: 16 Michoacán
B20: 62000 | C20: 62996 | D20: 17 Morelos
B21: 63000 | C21: 63996 | D21: 18 Nayarit
B22: 64000 | C22: 67996 | D22: 19 Nuevo León
B23: 68000 | C23: 71998 | D23: 20 Oaxaca
B24: 72000 | C24: 75997 | D24: 21 Puebla
B25: 76000 | C25: 76998 | D25: 22 Querétaro
B26: 77000 | C26: 77997 | D26: 23 Quintana Roo
B27: 78000 | C27: 79998 | D27: 24 San Luis Potosí
B28: 80000 | C28: 82996 | D28: 25 Sinaloa
B29: 83000 | C29: 85994 | D29: 26 Sonora
B30: 86000 | C30: 86998 | D30: 27 Tabasco
B31: 87000 | C31: 89970 | D31: 28 Tamaulipas
B32: 90000 | C32: 90990 | D32: 29 Tlaxcala
B33: 91000 | C33: 96998 | D33: 30 Veracruz
B34: 97000 | C34: 97990 | D34: 31 Yucatán
B35: 98000 | C35: 99998 | D35: 32 Zacatecas
D36: 33 Extranjeros

Sheet GENERALES (hidden)
B4: Trimestre | C4: Año
B5: Enero-Marzo | C5: 2022 | E5: Enero
B6: Abirl-Junio | C6: 2023 | E6: Febrero
B7: Julio-Septiembre | C7: 2024 | E7: Marzo
B8: Octubre-Diciembre | C8: 2025 | E8: Abril
B9: Enero-Junio | E9: Mayo
B10: Julio-Diciembre | E10: Junio
E11: Julio
E12: Agosto
E13: Septiembre
E14: Octubre
E15: Noviembre
E16: Diciembre
B21: VNUMERO = Range("BB" & A) & "|" & Range("BC" & A) & "|" & Range("BD" & A) & "|" & Range("BE" & A) & "|" & Range("BF" & A) & "|" & Range("BG" & A) & "|" & _
B22: Range("BH" & A) & "|" & Range("BI" & A) & "|" & Range("BJ" & A) & "|" & Range("BK" & A) & "|" & Range("BL" & A) & "|" & Range("BM" & A) & Range("BN" & A) & Range("BO" & A) & Range("BP" & A) _
B23: & Range("BQ" & A) & Range("BR" & A)& Range("BS" & A)& Range("BT" & A)& Range("BU" & A)& Range("BV" & A)& Range("BW" & A)& Range("BX" & A)& Range("BY" & A)& Range("BZ" & A) _
